[Event "Titled Tuesday Blitz January 31 Late 2023"]
[White "Naroditsky, Daniel"]
[Black "Hartikainen, Jarmo"]
[WhiteFideId "2026961"]
[BlackFideId "503134"]
[WhiteElo "2618"]
[BlackElo "2108"]
[Result "1-0"]
[Round "02"]
[TimeControl "180+2"]
[Date "2023.01.31"]
[WhiteClock "0:01:21"]
[BlackClock "0:00:01"]

1. e4 {[%clk 0:03:00]}  c5 {[%clk 0:02:59]} 2. Nf3 {[%clk 0:03:01]}  e6 {[%clk 0:02:59]} 3. c3 {[%clk 0:03:01]}  d5 {[%clk 0:02:59]} 4. exd5 {[%clk 0:03:01]}  exd5 {[%clk 0:02:59]} 5. d4 {[%clk 0:03:02]}  Nf6 {[%clk 0:02:58]} 6. Bb5+ {[%clk 0:03:02]}  Nc6 {[%clk 0:02:57]} 7. O-O {[%clk 0:03:02]}  Be7 {[%clk 0:02:57]} 8. dxc5 {[%clk 0:03:02]}  Bxc5 {[%clk 0:02:54]} 9. Bg5 {[%clk 0:03:02]}  Be7 {[%clk 0:02:54]} 10. Nbd2 {[%clk 0:03:02]}  O-O {[%clk 0:02:53]} 11. Nb3 {[%clk 0:03:02]}  Bg4 {[%clk 0:02:51]} 12. Be2 {[%clk 0:03:01]}  h6 {[%clk 0:02:49]} 13. Be3 {[%clk 0:02:59]}  Re8 {[%clk 0:02:43]} 14. Nfd4 {[%clk 0:02:56]}  Bxe2 {[%clk 0:02:40]} 15. Qxe2 {[%clk 0:02:57]}  Bf8 {[%clk 0:02:37]} 16. Rad1 {[%clk 0:02:54]}  a5 {[%clk 0:02:32]} 17. Qb5 {[%clk 0:02:53]}  Nxd4 {[%clk 0:02:19]} 18. Nxd4 {[%clk 0:02:52]}  a4 {[%clk 0:02:09]} 19. h3 {[%clk 0:02:45]}  Qa5 {[%clk 0:02:02]} 20. Qd3 {[%clk 0:02:38]}  Rad8 {[%clk 0:01:57]} 21. Nf5 {[%clk 0:02:37]}  Ne4 {[%clk 0:01:53]} 22. Bd4 {[%clk 0:02:37]}  Qc7 {[%clk 0:01:43]} 23. Qf3 {[%clk 0:02:35]}  Re6 {[%clk 0:01:29]} 24. Ne3 {[%clk 0:02:25]}  Qc6 {[%clk 0:01:26]} 25. Ng4 {[%clk 0:02:22]}  Ng5 {[%clk 0:01:20]} 26. Qf5 {[%clk 0:02:21]}  Rg6 {[%clk 0:01:07]} 27. Rde1 {[%clk 0:01:48]}  Re8 {[%clk 0:00:53]} 28. Rxe8 {[%clk 0:01:36]}  Qxe8 {[%clk 0:00:53]} 29. Qxd5 {[%clk 0:01:37]}  h5 {[%clk 0:00:51]} 30. Ne5 {[%clk 0:01:37]}  Nxh3+ {[%clk 0:00:45]} 31. Kh1 {[%clk 0:01:37]}  Nf4 {[%clk 0:00:45]} 32. Qf3 {[%clk 0:01:37]}  Rf6 {[%clk 0:00:37]} 33. Nd3 {[%clk 0:01:34]}  Nxd3 {[%clk 0:00:08]} 34. Bxf6 {[%clk 0:01:34]}  Ne1 {[%clk 0:00:02]} 35. Qd1 {[%clk 0:01:24]}  Qc6 {[%clk 0:00:01]} 36. Rxe1 {[%clk 0:01:21]}  Qxf6 {[%clk 0:00:01]} 37. Qf3 {[%clk 0:01:21]}  Qh4+ {[%clk 0:00:01]} 38. Kg1 {[%clk 0:01:21]} 1-0


[Site "https://www.chess.com"]

[Event "Titled Tuesday Blitz January 31 Late 2023"]
[White "Bortnyk, Olexandr"]
[Black "Taboas Rodriguez, Daniel"]
[WhiteFideId "14120828"]
[BlackFideId "2208466"]
[WhiteElo "2605"]
[BlackElo "2371"]
[Result "1-0"]
[Round "02"]
[TimeControl "180+2"]
[Date "2023.01.31"]
[WhiteClock "0:00:04"]
[BlackClock "0:00:32"]

1. e4 {[%clk 0:03:00]}  e5 {[%clk 0:02:59]} 2. Nf3 {[%clk 0:03:00]}  Nc6 {[%clk 0:03:00]} 3. Bb5 {[%clk 0:03:00]}  Nf6 {[%clk 0:03:00]} 4. Nc3 {[%clk 0:03:00]}  Bb4 {[%clk 0:02:57]} 5. Nd5 {[%clk 0:02:59]}  Ba5 {[%clk 0:02:56]} 6. O-O {[%clk 0:02:58]}  O-O {[%clk 0:02:55]} 7. d4 {[%clk 0:02:56]}  Nxd5 {[%clk 0:02:51]} 8. exd5 {[%clk 0:02:55]}  Nxd4 {[%clk 0:02:52]} 9. Nxd4 {[%clk 0:02:54]}  exd4 {[%clk 0:02:53]} 10. Qxd4 {[%clk 0:02:54]}  Bb6 {[%clk 0:02:53]} 11. Qf4 {[%clk 0:02:49]}  d6 {[%clk 0:02:52]} 12. Bd2 {[%clk 0:02:46]}  Bd7 {[%clk 0:02:51]} 13. Bd3 {[%clk 0:02:46]}  Re8 {[%clk 0:02:48]} 14. Rfe1 {[%clk 0:02:46]}  Rxe1+ {[%clk 0:02:41]} 15. Rxe1 {[%clk 0:02:47]}  Qf8 {[%clk 0:02:41]} 16. Qh4 {[%clk 0:02:44]}  h6 {[%clk 0:02:31]} 17. Re7 {[%clk 0:02:22]}  Rd8 {[%clk 0:01:51]} 18. Bc3 {[%clk 0:01:59]}  f6 {[%clk 0:01:04]} 19. Qe4 {[%clk 0:01:53]}  f5 {[%clk 0:01:03]} 20. Qe2 {[%clk 0:00:32]}  Re8 {[%clk 0:01:02]} 21. Rxe8 {[%clk 0:00:30]}  Bxe8 {[%clk 0:01:03]} 22. Qe6+ {[%clk 0:00:24]}  Qf7 {[%clk 0:00:57]} 23. Bxf5 {[%clk 0:00:18]}  Qxe6 {[%clk 0:00:57]} 24. Bxe6+ {[%clk 0:00:18]}  Kf8 {[%clk 0:00:57]} 25. Bc8 {[%clk 0:00:17]}  Bg6 {[%clk 0:00:57]} 26. a4 {[%clk 0:00:06]}  Bxc2 {[%clk 0:00:58]} 27. a5 {[%clk 0:00:06]}  Bc5 {[%clk 0:00:50]} 28. b4 {[%clk 0:00:06]}  Bb3 {[%clk 0:00:50]} 29. Bxb7 {[%clk 0:00:05]}  Ke7 {[%clk 0:00:31]} 30. bxc5 {[%clk 0:00:05]}  dxc5 {[%clk 0:00:32]} 31. Bxg7 {[%clk 0:00:06]}  h5 {[%clk 0:00:32]} 32. f4 {[%clk 0:00:04]}  c4 {[%clk 0:00:32]} 33. Kf2 {[%clk 0:00:04]}  c3 {[%clk 0:00:32]} 34. Bxc3 {[%clk 0:00:04]}  Kd6 {[%clk 0:00:32]} 35. Be5+ {[%clk 0:00:04]}  Kc5 {[%clk 0:00:32]} 36. Bxc7 {[%clk 0:00:04]} 1-0


[Site "https://www.chess.com"]

[Event "Titled Tuesday Blitz January 31 Late 2023"]
[White "Veiga, Jose Francisco R P Neves"]
[Black "Lenderman, Aleksandr"]
[WhiteFideId "1930087"]
[BlackFideId "2021285"]
[WhiteElo "2406"]
[BlackElo "2572"]
[Result "0-1"]
[Round "02"]
[TimeControl "180+2"]
[Date "2023.01.31"]
[WhiteClock "0:00:20"]
[BlackClock "0:00:59"]

1. d4 {[%clk 0:03:00]}  e6 {[%clk 0:02:59]} 2. Nf3 {[%clk 0:02:58]}  b6 {[%clk 0:02:59]} 3. Bg5 {[%clk 0:02:58]}  Be7 {[%clk 0:02:54]} 4. Bxe7 {[%clk 0:02:58]}  Qxe7 {[%clk 0:02:55]} 5. e4 {[%clk 0:02:57]}  Qb4+ {[%clk 0:02:54]} 6. Nbd2 {[%clk 0:02:51]}  Qxb2 {[%clk 0:02:35]} 7. Bc4 {[%clk 0:02:50]}  Qb4 {[%clk 0:02:33]} 8. O-O {[%clk 0:02:49]}  Bb7 {[%clk 0:02:30]} 9. Rb1 {[%clk 0:02:49]}  Qe7 {[%clk 0:02:23]} 10. d5 {[%clk 0:02:38]}  Nf6 {[%clk 0:02:22]} 11. Re1 {[%clk 0:02:36]}  e5 {[%clk 0:02:15]} 12. Bb5 {[%clk 0:02:24]}  O-O {[%clk 0:02:15]} 13. a4 {[%clk 0:02:18]}  a5 {[%clk 0:02:10]} 14. Nc4 {[%clk 0:02:18]}  d6 {[%clk 0:02:10]} 15. Qd3 {[%clk 0:02:17]}  Nbd7 {[%clk 0:02:07]} 16. Bxd7 {[%clk 0:02:17]}  Nxd7 {[%clk 0:02:05]} 17. Ne3 {[%clk 0:02:17]}  Nc5 {[%clk 0:02:04]} 18. Qc4 {[%clk 0:02:15]}  Bc8 {[%clk 0:02:01]} 19. Nd2 {[%clk 0:02:13]}  Bd7 {[%clk 0:02:01]} 20. Ra1 {[%clk 0:02:13]}  g6 {[%clk 0:02:00]} 21. f3 {[%clk 0:02:13]}  Kh8 {[%clk 0:01:59]} 22. Nb3 {[%clk 0:02:12]}  f5 {[%clk 0:01:36]} 23. Nxc5 {[%clk 0:02:07]}  bxc5 {[%clk 0:01:37]} 24. Qc3 {[%clk 0:02:03]}  fxe4 {[%clk 0:01:35]} 25. fxe4 {[%clk 0:02:02]}  Qh4 {[%clk 0:01:32]} 26. Nc4 {[%clk 0:01:52]}  Qf2+ {[%clk 0:01:32]} 27. Kh1 {[%clk 0:01:52]}  Qd4 {[%clk 0:01:33]} 28. Qxd4 {[%clk 0:01:48]}  cxd4 {[%clk 0:01:34]} 29. Kg1 {[%clk 0:01:38]}  Rfb8 {[%clk 0:01:31]} 30. Rf1 {[%clk 0:01:11]}  Kg7 {[%clk 0:01:27]} 31. Rf3 {[%clk 0:01:00]}  Rb4 {[%clk 0:01:22]} 32. Raf1 {[%clk 0:01:01]}  Be8 {[%clk 0:01:22]} 33. Nd2 {[%clk 0:00:47]}  Rb2 {[%clk 0:01:20]} 34. Nb3 {[%clk 0:00:29]}  Rxc2 {[%clk 0:01:19]} 35. Rf8 {[%clk 0:00:29]}  d3 {[%clk 0:01:06]} 36. Nxa5 {[%clk 0:00:28]}  Rxa5 {[%clk 0:01:04]} 37. Rxe8 {[%clk 0:00:28]}  d2 {[%clk 0:01:04]} 38. Re7+ {[%clk 0:00:28]}  Kh6 {[%clk 0:01:04]} 39. h4 {[%clk 0:00:20]}  Rc1 {[%clk 0:00:59]} 0-1


[Site "https://www.chess.com"]

[Event "Titled Tuesday Blitz January 31 Late 2023"]
[White "Pulpan, Jakub"]
[Black "Bambino Filho, Antonio Carlos"]
[WhiteFideId "302759"]
[BlackFideId "2113163"]
[WhiteElo "2427"]
[BlackElo "2144"]
[Result "1-0"]
[Round "02"]
[TimeControl "180+2"]
[Date "2023.01.31"]
[WhiteClock "0:01:04"]
[BlackClock "0:00:22"]

1. d4 {[%clk 0:02:48]}  Nf6 {[%clk 0:02:58]} 2. Nc3 {[%clk 0:02:47]}  d5 {[%clk 0:02:55]} 3. Bg5 {[%clk 0:02:47]}  e6 {[%clk 0:02:54]} 4. e4 {[%clk 0:02:39]}  Bb4 {[%clk 0:02:49]} 5. Ne2 {[%clk 0:02:30]}  h6 {[%clk 0:02:43]} 6. Bxf6 {[%clk 0:02:30]}  Qxf6 {[%clk 0:02:44]} 7. a3 {[%clk 0:02:30]}  Bxc3+ {[%clk 0:02:38]} 8. Nxc3 {[%clk 0:02:31]}  dxe4 {[%clk 0:02:38]} 9. Nxe4 {[%clk 0:02:30]}  Qg6 {[%clk 0:02:33]} 10. Ng3 {[%clk 0:02:27]}  O-O {[%clk 0:02:31]} 11. Bd3 {[%clk 0:02:26]}  f5 {[%clk 0:02:31]} 12. O-O {[%clk 0:02:26]}  Nc6 {[%clk 0:02:31]} 13. c3 {[%clk 0:02:23]}  Bd7 {[%clk 0:02:28]} 14. Re1 {[%clk 0:02:22]}  Rae8 {[%clk 0:02:28]} 15. Qb3 {[%clk 0:02:13]}  Qf6 {[%clk 0:02:18]} 16. Bxf5 {[%clk 0:02:00]}  Kh8 {[%clk 0:02:12]} 17. Be4 {[%clk 0:01:48]}  Qxf2+ {[%clk 0:02:11]} 18. Kh1 {[%clk 0:01:47]}  Qf4 {[%clk 0:01:53]} 19. Rf1 {[%clk 0:01:36]}  Qd6 {[%clk 0:01:42]} 20. Qxb7 {[%clk 0:01:35]}  Rxf1+ {[%clk 0:01:35]} 21. Rxf1 {[%clk 0:01:32]}  Rb8 {[%clk 0:01:35]} 22. Qa6 {[%clk 0:01:33]}  Rxb2 {[%clk 0:01:29]} 23. Bb1 {[%clk 0:01:21]}  Qe7 {[%clk 0:00:43]} 24. Qd3 {[%clk 0:01:17]}  g5 {[%clk 0:00:43]} 25. Qg6 {[%clk 0:01:16]}  Rxb1 {[%clk 0:00:32]} 26. Qxh6+ {[%clk 0:01:12]}  Qh7 {[%clk 0:00:32]} 27. Qf8+ {[%clk 0:01:09]}  Qg8 {[%clk 0:00:31]} 28. Qh6+ {[%clk 0:01:06]}  Qh7 {[%clk 0:00:31]} 29. Qxh7+ {[%clk 0:01:07]}  Kxh7 {[%clk 0:00:31]} 30. Rxb1 {[%clk 0:01:08]}  Na5 {[%clk 0:00:30]} 31. Ne4 {[%clk 0:01:08]}  Kg6 {[%clk 0:00:29]} 32. Nc5 {[%clk 0:01:08]}  Bc6 {[%clk 0:00:25]} 33. Nxe6 {[%clk 0:01:07]}  Nc4 {[%clk 0:00:25]} 34. Nxc7 {[%clk 0:01:05]}  Nxa3 {[%clk 0:00:22]} 35. Ra1 {[%clk 0:01:05]}  Nc2 {[%clk 0:00:21]} 36. Ra6 {[%clk 0:01:04]}  Ne3 {[%clk 0:00:22]} 37. Rxc6+ {[%clk 0:01:04]} 1-0


[Site "https://www.chess.com"]

[Event "Titled Tuesday Blitz January 31 Late 2023"]
[White "Pein, Jonathan"]
[Black "Goltsev, Dmitry"]
[WhiteFideId "417092"]
[BlackFideId "24176710"]
[WhiteElo "2265"]
[BlackElo "2269"]
[Result "0-1"]
[Round "02"]
[TimeControl "180+2"]
[Date "2023.01.31"]
[WhiteClock "0:00:01"]
[BlackClock "0:00:44"]

1. e4 {[%clk 0:02:54]}  e6 {[%clk 0:02:59]} 2. b3 {[%clk 0:02:53]}  d5 {[%clk 0:03:00]} 3. Bb2 {[%clk 0:02:54]}  dxe4 {[%clk 0:03:00]} 4. Nc3 {[%clk 0:02:55]}  Nf6 {[%clk 0:03:01]} 5. Qe2 {[%clk 0:02:54]}  Nc6 {[%clk 0:03:01]} 6. O-O-O {[%clk 0:02:43]}  Nd4 {[%clk 0:02:59]} 7. Qe1 {[%clk 0:02:40]}  Bc5 {[%clk 0:02:52]} 8. d3 {[%clk 0:02:36]}  exd3 {[%clk 0:02:47]} 9. Bxd3 {[%clk 0:02:37]}  O-O {[%clk 0:02:43]} 10. g4 {[%clk 0:02:38]}  Nxg4 {[%clk 0:02:34]} 11. Nh3 {[%clk 0:02:32]}  e5 {[%clk 0:02:28]} 12. Qe4 {[%clk 0:02:17]}  f5 {[%clk 0:02:22]} 13. Qg2 {[%clk 0:02:13]}  Qh4 {[%clk 0:02:16]} 14. Kb1 {[%clk 0:01:42]}  c6 {[%clk 0:02:01]} 15. Rhg1 {[%clk 0:01:42]}  Qh6 {[%clk 0:01:51]} 16. Bc1 {[%clk 0:01:28]}  Qf6 {[%clk 0:01:51]} 17. f3 {[%clk 0:01:23]}  Nxf3 {[%clk 0:01:33]} 18. Qxf3 {[%clk 0:01:20]}  Bxg1 {[%clk 0:01:29]} 19. Rxg1 {[%clk 0:01:13]}  e4 {[%clk 0:01:30]} 20. Bc4+ {[%clk 0:00:53]}  Kh8 {[%clk 0:01:28]} 21. Qg3 {[%clk 0:00:50]}  e3 {[%clk 0:01:26]} 22. Bb2 {[%clk 0:00:36]}  f4 {[%clk 0:01:23]} 23. Nxf4 {[%clk 0:00:17]}  Qxf4 {[%clk 0:01:22]} 24. Qh4 {[%clk 0:00:18]}  Qf2 {[%clk 0:01:17]} 25. Rg3 {[%clk 0:00:06]}  Qe1+ {[%clk 0:01:15]} 26. Bc1 {[%clk 0:00:06]}  Qxc3 {[%clk 0:01:15]} 27. h3 {[%clk 0:00:03]}  Qf6 {[%clk 0:01:13]} 28. Qh5 {[%clk 0:00:02]}  Qf5 {[%clk 0:01:06]} 29. Qh4 {[%clk 0:00:01]}  Nf6 {[%clk 0:00:56]} 30. Bd3 {[%clk 0:00:02]}  Qh5 {[%clk 0:00:54]} 31. Qd4 {[%clk 0:00:01]}  Bf5 {[%clk 0:00:52]} 32. Bc4 {[%clk 0:00:01]}  Rad8 {[%clk 0:00:49]} 33. Qxe3 {[%clk 0:00:02]}  Bg6 {[%clk 0:00:46]} 34. Qg1 {[%clk 0:00:02]}  Qf5 {[%clk 0:00:46]} 35. Bd3 {[%clk 0:00:01]}  Rxd3 {[%clk 0:00:44]} 36. Rxd3 {[%clk 0:00:02]}  Qe6 {[%clk 0:00:44]} 37. Rd2 {[%clk 0:00:02]}  Qxh3 {[%clk 0:00:43]} 38. Rg2 {[%clk 0:00:02]}  Qf5 {[%clk 0:00:42]} 39. Bb2 {[%clk 0:00:02]}  Ne4 {[%clk 0:00:42]} 40. a4 {[%clk 0:00:03]}  Qf1+ {[%clk 0:00:42]} 41. Ka2 {[%clk 0:00:02]}  Qxg1 {[%clk 0:00:42]} 42. Rxg1 {[%clk 0:00:03]}  Rf2 {[%clk 0:00:43]} 43. Re1 {[%clk 0:00:03]}  Rxc2 {[%clk 0:00:43]} 44. Rd1 {[%clk 0:00:03]}  Nc3+ {[%clk 0:00:43]} 45. Ka3 {[%clk 0:00:02]}  Nxd1 {[%clk 0:00:44]} 46. Bxg7+ {[%clk 0:00:01]} 0-1


[Site "https://www.chess.com"]

[Event "Titled Tuesday Blitz January 31 Late 2023"]
[White "Bilych, Olexiy"]
[Black "Kouskoutis, Georgios-Alexandros"]
[WhiteFideId "14156504"]
[BlackFideId "4234049"]
[WhiteElo "2441"]
[BlackElo "2295"]
[Result "0-1"]
[Round "02"]
[TimeControl "180+2"]
[Date "2023.01.31"]
[WhiteClock "0:00:32"]
[BlackClock "0:00:03"]

1. d4 {[%clk 0:03:00]}  Nf6 {[%clk 0:02:37]} 2. c4 {[%clk 0:02:56]}  e6 {[%clk 0:02:37]} 3. Nf3 {[%clk 0:02:57]}  c5 {[%clk 0:02:37]} 4. d5 {[%clk 0:02:57]}  exd5 {[%clk 0:02:38]} 5. cxd5 {[%clk 0:02:58]}  d6 {[%clk 0:02:39]} 6. Nc3 {[%clk 0:02:58]}  g6 {[%clk 0:02:39]} 7. e4 {[%clk 0:02:57]}  a6 {[%clk 0:02:39]} 8. Be2 {[%clk 0:02:55]}  Bg4 {[%clk 0:02:38]} 9. a4 {[%clk 0:02:54]}  Bg7 {[%clk 0:02:33]} 10. O-O {[%clk 0:02:53]}  Bxf3 {[%clk 0:02:32]} 11. Bxf3 {[%clk 0:02:53]}  O-O {[%clk 0:02:33]} 12. Be2 {[%clk 0:02:52]}  Nbd7 {[%clk 0:02:32]} 13. Qc2 {[%clk 0:02:52]}  Re8 {[%clk 0:02:28]} 14. Re1 {[%clk 0:02:52]}  Qc7 {[%clk 0:02:27]} 15. Be3 {[%clk 0:02:51]}  Rac8 {[%clk 0:01:53]} 16. Bf1 {[%clk 0:02:37]}  Ng4 {[%clk 0:01:33]} 17. Bf4 {[%clk 0:02:37]}  c4 {[%clk 0:01:02]} 18. h3 {[%clk 0:02:35]}  Nge5 {[%clk 0:01:02]} 19. Be3 {[%clk 0:02:27]}  Nc5 {[%clk 0:00:58]} 20. a5 {[%clk 0:02:15]}  Nb3 {[%clk 0:00:43]} 21. Ra4 {[%clk 0:02:11]}  Nxa5 {[%clk 0:00:41]} 22. f4 {[%clk 0:01:20]}  Nd3 {[%clk 0:00:34]} 23. Rea1 {[%clk 0:01:14]}  Nb3 {[%clk 0:00:26]} 24. R1a3 {[%clk 0:01:13]}  Nd4 {[%clk 0:00:10]} 25. Qd2 {[%clk 0:01:09]}  Nb5 {[%clk 0:00:06]} 26. Ra2 {[%clk 0:00:51]}  Nxb2 {[%clk 0:00:06]} 27. Nxb5 {[%clk 0:00:48]}  axb5 {[%clk 0:00:07]} 28. Rb4 {[%clk 0:00:48]}  Rxe4 {[%clk 0:00:05]} 29. Rxb5 {[%clk 0:00:31]}  c3 {[%clk 0:00:05]} 30. Qf2 {[%clk 0:00:32]}  Nd1 {[%clk 0:00:03]} 31. Bb6 {[%clk 0:00:31]}  Nxf2 {[%clk 0:00:02]} 32. Bxc7 {[%clk 0:00:32]}  Rxc7 {[%clk 0:00:03]} 33. Kxf2 {[%clk 0:00:31]}  c2 {[%clk 0:00:03]} 34. Rxc2 {[%clk 0:00:31]}  Rxc2+ {[%clk 0:00:03]} 35. Kf3 {[%clk 0:00:31]}  Re8 {[%clk 0:00:03]} 36. Rxb7 {[%clk 0:00:32]}  Rc3+ {[%clk 0:00:03]} 37. Kg4 {[%clk 0:00:32]}  h5+ {[%clk 0:00:03]} 38. Kh4 {[%clk 0:00:32]}  Bf6# {[%clk 0:00:03]} 0-1


[Site "https://www.chess.com"]

[Event "Titled Tuesday Blitz January 31 Late 2023"]
[White "Dzida, Kamil"]
[Black "Manukyan, Sargis A."]
[WhiteFideId "21828652"]
[BlackFideId "13303970"]
[WhiteElo "2352"]
[BlackElo "2158"]
[Result "0-1"]
[Round "02"]
[TimeControl "180+2"]
[Date "2023.01.31"]
[WhiteClock "0:00:12"]
[BlackClock "0:01:04"]

1. d4 {[%clk 0:03:00]}  d5 {[%clk 0:02:59]} 2. c4 {[%clk 0:03:00]}  e6 {[%clk 0:02:59]} 3. Nf3 {[%clk 0:03:00]}  Nf6 {[%clk 0:03:00]} 4. Nc3 {[%clk 0:03:00]}  Be7 {[%clk 0:03:00]} 5. Bg5 {[%clk 0:03:00]}  O-O {[%clk 0:03:01]} 6. e3 {[%clk 0:03:01]}  b6 {[%clk 0:03:00]} 7. cxd5 {[%clk 0:03:00]}  Nxd5 {[%clk 0:03:00]} 8. Bxe7 {[%clk 0:03:00]}  Qxe7 {[%clk 0:03:01]} 9. Nxd5 {[%clk 0:03:01]}  exd5 {[%clk 0:03:02]} 10. Rc1 {[%clk 0:03:01]}  Bb7 {[%clk 0:03:02]} 11. Bd3 {[%clk 0:03:01]}  Rc8 {[%clk 0:03:03]} 12. Bf5 {[%clk 0:02:55]}  Rd8 {[%clk 0:03:00]} 13. Qc2 {[%clk 0:02:54]}  g6 {[%clk 0:03:01]} 14. Bd3 {[%clk 0:02:43]}  Rc8 {[%clk 0:02:59]} 15. h4 {[%clk 0:02:43]}  c5 {[%clk 0:03:00]} 16. Qd2 {[%clk 0:02:21]}  c4 {[%clk 0:02:58]} 17. Bb1 {[%clk 0:02:19]}  Nd7 {[%clk 0:02:54]} 18. h5 {[%clk 0:02:19]}  b5 {[%clk 0:02:51]} 19. hxg6 {[%clk 0:01:54]}  hxg6 {[%clk 0:02:52]} 20. Ke2 {[%clk 0:01:11]}  b4 {[%clk 0:02:46]} 21. Ne5 {[%clk 0:01:01]}  Nxe5 {[%clk 0:02:39]} 22. dxe5 {[%clk 0:01:01]}  c3 {[%clk 0:02:33]} 23. bxc3 {[%clk 0:00:59]}  bxc3 {[%clk 0:02:33]} 24. Rxc3 {[%clk 0:00:58]}  Qxe5 {[%clk 0:02:28]} 25. Rxc8+ {[%clk 0:00:51]}  Rxc8 {[%clk 0:02:29]} 26. Qd4 {[%clk 0:00:51]}  Ba6+ {[%clk 0:02:26]} 27. Kf3 {[%clk 0:00:45]}  Qxd4 {[%clk 0:02:15]} 28. exd4 {[%clk 0:00:45]}  Kg7 {[%clk 0:02:16]} 29. Ke3 {[%clk 0:00:40]}  Rc3+ {[%clk 0:02:15]} 30. Kd2 {[%clk 0:00:40]}  Ra3 {[%clk 0:02:15]} 31. Rc1 {[%clk 0:00:38]}  Bc4 {[%clk 0:02:15]} 32. Rc3 {[%clk 0:00:35]}  Ra4 {[%clk 0:02:11]} 33. a3 {[%clk 0:00:35]}  Ra5 {[%clk 0:02:06]} 34. Bc2 {[%clk 0:00:35]}  Ra6 {[%clk 0:02:05]} 35. Bd3 {[%clk 0:00:35]}  Bxd3 {[%clk 0:02:04]} 36. Kxd3 {[%clk 0:00:36]}  Rf6 {[%clk 0:02:02]} 37. f3 {[%clk 0:00:36]}  Rb6 {[%clk 0:02:03]} 38. Rc5 {[%clk 0:00:34]}  Rb3+ {[%clk 0:02:02]} 39. Rc3 {[%clk 0:00:34]}  Rb2 {[%clk 0:02:03]} 40. Rc2 {[%clk 0:00:32]}  Rb1 {[%clk 0:01:58]} 41. Rc5 {[%clk 0:00:31]}  Kf6 {[%clk 0:01:53]} 42. Rxd5 {[%clk 0:00:30]}  Rb3+ {[%clk 0:01:53]} 43. Ke4 {[%clk 0:00:30]}  Rxa3 {[%clk 0:01:54]} 44. Rd6+ {[%clk 0:00:30]}  Ke7 {[%clk 0:01:52]} 45. Rc6 {[%clk 0:00:31]}  Ra2 {[%clk 0:01:52]} 46. g4 {[%clk 0:00:31]}  a5 {[%clk 0:01:51]} 47. Ra6 {[%clk 0:00:31]}  a4 {[%clk 0:01:52]} 48. g5 {[%clk 0:00:30]}  a3 {[%clk 0:01:51]} 49. Kd5 {[%clk 0:00:31]}  Rg2 {[%clk 0:01:47]} 50. Ra7+ {[%clk 0:00:28]}  Kf8 {[%clk 0:01:46]} 51. Rxa3 {[%clk 0:00:28]}  Rxg5+ {[%clk 0:01:47]} 52. Ke4 {[%clk 0:00:28]}  Rf5 {[%clk 0:01:47]} 53. d5 {[%clk 0:00:27]}  Ke7 {[%clk 0:01:47]} 54. Ra7+ {[%clk 0:00:27]}  Kf6 {[%clk 0:01:45]} 55. Ra6+ {[%clk 0:00:27]}  Kg7 {[%clk 0:01:45]} 56. d6 {[%clk 0:00:26]}  Kf6 {[%clk 0:01:44]} 57. f4 {[%clk 0:00:15]}  Ke6 {[%clk 0:01:43]} 58. Ra8 {[%clk 0:00:10]}  Kxd6 {[%clk 0:01:42]} 59. Rd8+ {[%clk 0:00:11]}  Ke7 {[%clk 0:01:42]} 60. Ra8 {[%clk 0:00:12]}  Kf6 {[%clk 0:01:41]} 61. Ra6+ {[%clk 0:00:12]}  Kg7 {[%clk 0:01:41]} 62. Rc6 {[%clk 0:00:12]}  Ra5 {[%clk 0:01:41]} 63. Kf3 {[%clk 0:00:13]}  Ra1 {[%clk 0:01:40]} 64. Kg4 {[%clk 0:00:13]}  Rf1 {[%clk 0:01:39]} 65. Rc5 {[%clk 0:00:13]}  Rg1+ {[%clk 0:01:37]} 66. Kf3 {[%clk 0:00:13]}  f5 {[%clk 0:01:36]} 67. Rc7+ {[%clk 0:00:12]}  Kh6 {[%clk 0:01:36]} 68. Rc8 {[%clk 0:00:13]}  Rf1+ {[%clk 0:01:36]} 69. Kg3 {[%clk 0:00:13]}  Ra1 {[%clk 0:01:35]} 70. Rh8+ {[%clk 0:00:13]}  Kg7 {[%clk 0:01:35]} 71. Rb8 {[%clk 0:00:14]}  Ra3+ {[%clk 0:01:36]} 72. Kf2 {[%clk 0:00:13]}  Kf7 {[%clk 0:01:31]} 73. Rb7+ {[%clk 0:00:13]}  Kf6 {[%clk 0:01:30]} 74. Rb6+ {[%clk 0:00:13]}  Kg7 {[%clk 0:01:31]} 75. Rb7+ {[%clk 0:00:14]}  Kh6 {[%clk 0:01:32]} 76. Rb8 {[%clk 0:00:10]}  Kh5 {[%clk 0:01:32]} 77. Rg8 {[%clk 0:00:10]}  Rb3 {[%clk 0:01:30]} 78. Rg7 {[%clk 0:00:10]}  Rb8 {[%clk 0:01:20]} 79. Kg3 {[%clk 0:00:09]}  Rb3+ {[%clk 0:01:21]} 80. Kf2 {[%clk 0:00:10]}  Ra3 {[%clk 0:01:21]} 81. Rg8 {[%clk 0:00:10]}  Kg4 {[%clk 0:01:06]} 82. Rxg6+ {[%clk 0:00:10]}  Kxf4 {[%clk 0:01:07]} 83. Rb6 {[%clk 0:00:11]}  Ra2+ {[%clk 0:01:07]} 84. Kf1 {[%clk 0:00:10]}  Ra3 {[%clk 0:01:07]} 85. Kf2 {[%clk 0:00:09]}  Ra2+ {[%clk 0:01:07]} 86. Kf1 {[%clk 0:00:09]}  Kg4 {[%clk 0:01:07]} 87. Rb3 {[%clk 0:00:08]}  f4 {[%clk 0:01:07]} 88. Rc3 {[%clk 0:00:09]}  Rd2 {[%clk 0:01:07]} 89. Ra3 {[%clk 0:00:08]}  Rd4 {[%clk 0:01:08]} 90. Rb3 {[%clk 0:00:08]}  Re4 {[%clk 0:01:08]} 91. Kf2 {[%clk 0:00:07]}  Rc4 {[%clk 0:01:07]} 92. Ra3 {[%clk 0:00:07]}  Rc2+ {[%clk 0:01:07]} 93. Kf1 {[%clk 0:00:07]}  Rb2 {[%clk 0:01:08]} 94. Rc3 {[%clk 0:00:08]}  Kf5 {[%clk 0:01:08]} 95. Ra3 {[%clk 0:00:07]}  Ke4 {[%clk 0:01:09]} 96. Rc3 {[%clk 0:00:08]}  Ra2 {[%clk 0:01:09]} 97. Rb3 {[%clk 0:00:08]}  Rd2 {[%clk 0:01:09]} 98. Ra3 {[%clk 0:00:09]}  Rd4 {[%clk 0:01:09]} 99. Rb3 {[%clk 0:00:09]}  Rc4 {[%clk 0:01:08]} 100. Ra3 {[%clk 0:00:09]}  Rc1+ {[%clk 0:01:09]} 101. Ke2 {[%clk 0:00:10]}  Rc2+ {[%clk 0:01:06]} 102. Kf1 {[%clk 0:00:09]}  Rb2 {[%clk 0:01:05]} 103. Rc3 {[%clk 0:00:09]}  Rb1+ {[%clk 0:01:04]} 104. Kf2 {[%clk 0:00:09]}  Ra1 {[%clk 0:01:04]} 105. Rb3 {[%clk 0:00:09]}  Kf5 {[%clk 0:01:04]} 106. Rd3 {[%clk 0:00:08]}  Kg4 {[%clk 0:01:02]} 107. Rb3 {[%clk 0:00:08]}  Ra2+ {[%clk 0:01:02]} 108. Kf1 {[%clk 0:00:08]}  f3 {[%clk 0:01:02]} 109. Rb8 {[%clk 0:00:09]}  Kf4 {[%clk 0:01:01]} 110. Rf8+ {[%clk 0:00:09]}  Kg3 {[%clk 0:01:01]} 111. Rg8+ {[%clk 0:00:09]}  Kh3 {[%clk 0:01:01]} 112. Rh8+ {[%clk 0:00:10]}  Kg4 {[%clk 0:01:02]} 113. Rg8+ {[%clk 0:00:10]}  Kf5 {[%clk 0:01:03]} 114. Rf8+ {[%clk 0:00:11]}  Ke4 {[%clk 0:01:04]} 115. Re8+ {[%clk 0:00:11]}  Kd5 {[%clk 0:01:04]} 116. Rd8+ {[%clk 0:00:12]}  Ke6 {[%clk 0:01:05]} 117. Rf8 {[%clk 0:00:12]}  Ra3 {[%clk 0:01:04]} 118. Kf2 {[%clk 0:00:12]}  Ke5 {[%clk 0:01:05]} 119. Rf4 {[%clk 0:00:12]}  Kxf4 {[%clk 0:01:04]} 0-1


[Site "https://www.chess.com"]